fUSD/lending_fUSD_20250312
["ID","MTS","AMOUNT","RATE_DAILY","PERIOD"]
[356026616,1741805438013,-6224.572055,0.0001,2]
[356026617,1741805438024,-9547.37304,0.0001,2]
[356026618,1741805438035,-2835.07721257,0.0001,2]
[356026619,1741805438047,-1947.61297807,0.0001,2]
[356026817,1741805440097,-13284.14322112,0.0001,2]
[356026819,1741805440109,-502.08531871,0.0001,2]
[356026825,1741805440150,-217163.63993623,0.0001,2]
[356026827,1741805440160,-1525469.99616415,0.0001,2]
[356026829,1741805440171,-627.48915553,0.0001,2]
[356026831,1741805440183,-2196.02617109,0.0001,2]
[356026833,1741805440196,-279.47215285,0.0001,2]
[356026846,1741805440307,-283.84400501,0.0001,2]
[356026849,1741805440319,-242566.95577015,0.0001,2]
[356026851,1741805440330,-582.839,0.0001,2]
[356027096,1741805442845,-583.0,0.0001,2]
[356027098,1741805442855,-307.58,0.0001,2]
[356027101,1741805442871,-438.60309297,0.0001,2]
[356027106,1741805442911,-4304.3,0.0001,2]
[356027117,1741805443013,-994.49440999,0.0001,2]
[356027120,1741805443028,-38947.0,0.0001,2]
[356027203,1741805444272,-96708.81201571,0.0001,2]
[356027322,1741805445936,-476.87996005,0.0001,2]
[356027324,1741805445952,-65966.33894,0.0001,2]
[356027336,1741805446053,-329999.99999972,0.0001,2]
[356027344,1741805446117,-444.10315053,0.0001,2]
[356027346,1741805446128,-1024705.92011949,0.0001,2]
[356027352,1741805446180,-423070.35587545,0.0001,2]
[356027467,1741805812410,360.2,8.266e-05,2]
[356027468,1741805827791,7190.05,8.819e-05,2]
[356027471,1741806519507,-154.47261532,9e-05,2]
[356027477,1741806631975,-395.52738468,9e-05,2]
[356027478,1741806631985,-150.0,9.373e-05,2]
[356027479,1741806631994,-250.0,9.634e-05,2]
[356027480,1741806632003,-233.76960295,9.746e-05,2]
[356027481,1741806632015,-752.23039705,9.746e-05,2]
[356027482,1741806632024,-310.28580465,9.89e-05,2]
[356027483,1741806632033,-163.33020747,9.899e-05,2]
[356027484,1741806632042,-150.0,9.899e-05,2]
[356027485,1741806632051,-465.33255775,9.9e-05,2]
[356027486,1741806632090,-330.15855907,9.9e-05,2]
[356027487,1741806632101,-1368.81728318,9.9e-05,2]
[356027488,1741806632110,-66281.495,9.9e-05,2]
[356027489,1741806632119,-509.7188,9.9e-05,2]
[356027490,1741806632128,-1805.5511,9.9e-05,2]
[356027491,1741806632137,-163.33020747,9.9e-05,2]
[356027492,1741806632146,-150.0,9.9e-05,2]
[356027493,1741806632155,-150.0,9.9e-05,2]
[356027494,1741806632164,-319.90399824,9.98e-05,2]
[356027495,1741806632173,-500.0,9.999e-05,2]
[356027496,1741806632182,-500.0,9.999e-05,2]
[356027497,1741806632191,-856.0,0.0001,2]
[356027498,1741806632200,-92395.18361111,0.0001,2]
[356027499,1741806632211,-652.0821558,0.0001,2]
[356027500,1741806632221,-1267.1695585,0.0001,2]
[356027501,1741806632259,-1997.21734795,0.0001,2]
[356027502,1741806632269,-778.82933618,0.0001,2]
[356027503,1741806632280,-6815.34,0.0001,2]
[356027504,1741806632318,-712.02367317,0.0001,2]
[356027505,1741806632329,-877.25582003,0.0001,2]
[356027506,1741806632343,-1036.92088886,0.0001,2]
[356027507,1741806632398,-342704.28466948,0.0001,2]
[356027755,1741806637867,-4752.875,0.0001,2]
[356027757,1741806637940,-1015540.71625737,0.0001,2]
[356027758,1741806637950,-227.60872823,0.0001,2]
[356027759,1741806637959,-200.0,0.0001,2]
[356027760,1741806637968,-200.0,0.0001,2]
[356027761,1741806637977,-200.0,0.0001,2]
[356027762,1741806637987,-4000.0,0.0001,2]
[356027763,1741806637996,-5567.56,0.0001,2]
[356027764,1741806638005,-19999.99,0.0001,2]
[356027765,1741806638014,-1642.83,0.0001,2]
[356027766,1741806638023,-332.35904996,0.0001,2]
[356027767,1741806638032,-200.0,0.0001,2]
[356027768,1741806638041,-2049.05889244,0.0001,2]
[356027769,1741806638050,-444.07,0.00010043,2]
[356027770,1741806638059,-156.04,0.00010043,2]
[356027771,1741806638068,-156.04,0.00010079,2]
[356027772,1741806638077,-200.0,0.000101,2]
[356027773,1741806638087,-200.0,0.000101,2]
[356027774,1741806638095,-200.0,0.000101,2]
[356027775,1741806638104,-200.0,0.000101,2]
[356027776,1741806638115,-156.04,0.00010115,2]
[356027777,1741806638124,-156.04,0.00010151,2]
[356027778,1741806638133,-156.04,0.00010186,2]
[356027779,1741806638142,-5709.27871844,0.00010195,2]
[356027780,1741806638151,-200.0,0.00010201,2]
[356027781,1741806638160,-200.0,0.00010201,2]
[356027782,1741806638169,-200.0,0.00010201,2]
[356027783,1741806638178,-200.0,0.00010201,2]
[356027784,1741806638187,-156.04,0.00010222,2]
[356027785,1741806638196,-156.04,0.00010258,2]
[356027786,1741806638205,-500.0,0.00010273,2]
[356027787,1741806638214,-386.51823076,0.00010291,2]
[356027788,1741806638223,-156.04,0.00010294,2]
[356027789,1741806638232,-200.0,0.00010303,2]
[356027790,1741806638241,-200.0,0.00010303,2]
[356027791,1741806638250,-200.0,0.00010303,2]
[356027792,1741806638259,-200.0,0.00010303,2]
[356027793,1741806638268,-156.04,0.0001033,2]
[356027795,1741806638277,-158.1,0.00010344,2]
[356027797,1741806638287,-188.53,0.00010344,2]
[356027799,1741806638296,-156.04,0.00010366,2]
[356027801,1741806638307,-158.1,0.00010402,2]
[356027803,1741806638316,-156.04,0.00010402,2]
[356027805,1741806638325,-200.0,0.00010406,2]
[356027807,1741806638333,-200.0,0.00010406,2]
[356027809,1741806638343,-200.0,0.00010406,2]
[356027810,1741806638352,-200.0,0.00010406,2]
[356027812,1741806638361,-447.32,0.00010408,2]
[356027814,1741806638370,-156.04,0.00010438,2]
[356027816,1741806638382,-158.1,0.00010459,2]
[356027818,1741806638391,-156.04,0.00010473,2]
[356027820,1741806638400,-167.20471877,0.00010491,2]
[356027822,1741806638410,-247.06790445,0.00010491,2]
[356027824,1741806638419,-223.46,0.000105,2]
[356027826,1741806638428,-156.04,0.00010509,2]
[356027828,1741806638437,-158.1,0.00010517,2]
[356027830,1741806638446,-360.2,0.0001053,2]
[356027832,1741806638455,-156.04,0.00010545,2]
[356027834,1741806638464,-500.0,0.00010547,2]
[356027836,1741806638473,-8500.0,0.00010556,2]
[356027838,1741806638482,-8500.0,0.00010565,2]
[356027840,1741806638491,-8500.0,0.00010574,2]
[356027842,1741806638500,-8500.0,0.00010574,2]
[356027844,1741806638509,-158.1,0.00010574,2]
[356027846,1741806638518,-8500.0,0.00010582,2]
[356027848,1741806638527,-8500.0,0.00010582,2]
[356027850,1741806638536,-386.51823076,0.00010583,2]
[356027852,1741806638545,-8500.0,0.00010591,2]
[356027854,1741806638554,-8500.0,0.00010591,2]
[356027856,1741806638563,-8500.0,0.00010591,2]
[356027858,1741806638571,-8194.47990055,0.000106,2]
[356027859,1741806638580,-8500.0,0.000106,2]
[356027861,1741806638590,-8500.0,0.000106,2]
[356027863,1741806638598,-8500.0,0.000106,2]
[356027865,1741806638607,-158.1,0.00010631,2]
[356027867,1741806638617,-158.1,0.00010689,2]
[356027869,1741806638627,-2000.0,0.00010706,2]
[356027871,1741806638636,-158.1,0.00010746,2]
[356027873,1741806638646,-158.1,0.00010804,2]
[356027875,1741806638655,-464.95,0.00010821,2]
[356027877,1741806638664,-158.1,0.00010861,2]
[356027879,1741806638673,-150.0,0.00010889,2]
[356027881,1741806638682,-386.51823076,0.00010958,2]
[356027883,1741806638691,-200.0,0.00010959,2]
[356027885,1741806638700,-4000.0,0.00010959,2]
[356027887,1741806638709,-550.0,0.00010999,2]
[356027889,1741806638718,-600.0,0.00011,2]
[356027891,1741806638728,-550.0,0.00011,2]
[356027893,1741806638737,-386.51823076,0.00011094,2]
[356027895,1741806638746,-163.47,0.00011191,2]
[356027897,1741806638755,-1000.0,0.00011266,2]
[356027899,1741806638764,-150.99,0.00011281,2]
[356027901,1741806638772,-299.99,0.00011281,2]
[356027903,1741806638782,-5269.17,0.00011281,2]
[356027905,1741806638791,-20597.4,0.00011281,2]
[356027907,1741806638800,-8269.14,0.00011281,2]
[356027909,1741806638809,-444.07,0.00011298,2]
[356027911,1741806638819,-150.0,0.00011321,2]
[356027913,1741806638828,-2049.05889236,0.00011383,2]
[356027915,1741806638837,-386.51823076,0.00011448,2]
[356027917,1741806638846,-2751.0,0.00011507,2]
[356027919,1741806638855,-447.32,0.00011564,2]
[356027921,1741806638864,-500.0,0.00011699,2]
[356027923,1741806638873,-188.53,0.00012052,2]
[356027924,1741806638882,-444.07,0.00012554,2]
[356027926,1741806638891,-1000.0,0.00012675,2]
[356027928,1741806638900,-447.32,0.00012721,2]
[356027930,1741806638909,-360.2,0.00012794,2]
[356027932,1741806638918,-2049.05889236,0.00012866,2]
[356027934,1741806638927,-650.0,0.00013,2]
[356027936,1741806638937,-216.99,0.00013,2]
[356027938,1741806638946,-216.99,0.00013,2]
[356027940,1741806638955,-216.99,0.00013,2]
[356027942,1741806638964,-216.99,0.00013,2]
[356027944,1741806638973,-216.99,0.00013,2]
[356027946,1741806638983,-216.99,0.00013,2]
[356027948,1741806638992,-216.99,0.00013,2]
[356027950,1741806639001,-216.99,0.00013,2]
[356027952,1741806639010,-216.99,0.00013,2]
[356027954,1741806639019,-216.99,0.00013,2]
[356027956,1741806639028,-216.99,0.00013,2]
[356027958,1741806639038,-216.99,0.00013,2]
[356027960,1741806639046,-216.99,0.00013,2]
[356027962,1741806639056,-3932.0,0.00013637,2]
[356027964,1741806639065,-1110.513,0.00013637,2]
[356027966,1741806639074,-150.0,0.00013637,2]
[356027968,1741806639083,-263.621,0.00013637,2]
[356027970,1741806639093,-986.0,0.00013644,2]
[356027972,1741806639102,-500.0,0.00013699,2]
[356027974,1741806639111,-200.0,0.00013699,2]
[356027976,1741806639120,-525.45631572,0.00013699,2]
[356027978,1741806639129,-500.0,0.00013699,2]
[356027980,1741806639138,-151.3660817,0.00013699,2]
[356027982,1741806639148,-20340.79,0.000137,2]
[356027984,1741806639157,-20340.79,0.000137,2]
[356027986,1741806639166,-444.07,0.00013809,2]
[356027987,1741806639175,-447.32,0.00013877,2]
[356028005,1741806639343,-163.47,0.00013989,2]
[356028006,1741806639353,-1000.0,0.00014083,2]
[356028008,1741806639361,-2049.05889236,0.00014348,2]
[356028010,1741806639371,-359.0,0.00014941,5]
[356028012,1741806639380,-359.0,0.00014941,5]
[356028014,1741806639390,-4000.0,0.00015,2]
[356028015,1741806639399,-360.2,0.00015057,2]
[356028017,1741806639408,-444.07,0.00015064,2]
[356028019,1741806639417,-300.0,0.00015068,2]
[356028021,1741806639426,-1000.0,0.00015491,2]
[356028022,1741806639436,-2049.05889236,0.00015831,2]
[356028024,1741806639445,-300.0,0.00016438,2]
[356028026,1741806639454,-163.46,0.00016438,2]
[356028028,1741806639464,-408.79,0.00016493,30]
[356028029,1741806639473,-163.47,0.00016787,2]
[356028031,1741806639482,-5800.0,0.00016848,2]
[356028033,1741806639491,-5800.0,0.00016856,2]
[356028035,1741806639501,-216.99,0.00016863,2]
[356028036,1741806639510,-5800.0,0.00016865,2]
[356028038,1741806639519,-5800.0,0.00016873,2]
[356028040,1741806639528,-5800.0,0.00016882,2]
[356028042,1741806639538,-5800.0,0.0001689,2]
[356028044,1741806639547,-2474.73592523,0.0001689,2]
[356028045,1741806639556,-1000.0,0.000169,2]
[356028047,1741806639565,-431.0,0.00017,2]
[356028049,1741806639574,-2049.05889236,0.00017314,2]
[356028051,1741806639583,-360.2,0.00017321,2]
[356028052,1741806639592,-600.0,0.00017808,2]
[356028054,1741806639601,-200.0,0.00018082,2]
[356028056,1741806639610,-153.78,0.000186,2]
[356028058,1741806639619,-2049.05889236,0.00018797,2]
[356028059,1741806639628,-500.0,0.00019041,2]
[356028061,1741806639637,-1000.0,0.00019178,2]
[356028063,1741806639647,-360.2,0.00019585,2]
[356028065,1741806639657,-4000.0,0.0002,2]
[356028067,1741806639667,-2476.44639202,0.00020478,7]
[356028069,1741806639676,-449.71181961,0.00020478,7]
[356028070,1741806639685,-163.46,0.00020548,2]
[356028072,1741806639694,-408.79,0.00020971,30]
[356028074,1741806639704,-360.2,0.00021849,2]
[356028076,1741806639713,-200.0,0.00023,2]
[356028078,1741806639722,-500.0,0.00023,2]
[356028079,1741806639731,-500.0,0.00023,2]
[356028081,1741806639741,-500.0,0.00023,2]
[356028083,1741806639750,-500.0,0.00023,2]
[356028084,1741806639759,-500.0,0.00023,2]
[356028086,1741806639768,-500.0,0.00023,2]
[356028088,1741806639777,-500.0,0.00023,2]
[356028090,1741806639786,-500.0,0.00023,2]
[356028091,1741806639795,-500.0,0.00023,2]
[356028093,1741806639804,-500.0,0.00023,2]
[356028095,1741806639813,-500.0,0.00023,2]
[356028097,1741806639823,-500.0,0.00023,2]
[356028099,1741806639832,-500.0,0.00023,2]
[356028101,1741806639842,-500.0,0.00023,2]
[356028103,1741806639851,-500.0,0.00023,2]
[356028104,1741806639860,-500.0,0.00023,2]
[356028106,1741806639869,-500.0,0.00023,2]
[356028108,1741806639878,-500.0,0.00023,2]
[356028110,1741806639887,-500.0,0.00023,2]
[356028112,1741806639896,-500.0,0.00023,2]
[356028113,1741806639905,-500.0,0.00023,2]
[356028115,1741806639915,-500.0,0.00023,2]
[356028117,1741806639924,-500.0,0.00023,2]
[356028119,1741806639933,-500.0,0.00023,2]
[356028121,1741806639943,-500.0,0.00023,2]
[356028123,1741806639952,-500.0,0.00023,2]
[356028124,1741806639962,-500.0,0.00023,2]
[356028126,1741806639971,-500.0,0.00023,2]
[356028128,1741806639980,-500.0,0.00023,2]
[356028130,1741806639990,-500.0,0.00023,2]
[356028132,1741806639999,-500.0,0.00023,2]
[356028134,1741806640008,-500.0,0.00023,2]
[356028135,1741806640017,-500.0,0.00023,2]
[356028137,1741806640027,-500.0,0.00023,2]
[356028139,1741806640036,-500.0,0.00023,2]
[356028141,1741806640049,-500.0,0.00023,2]
[356028143,1741806640060,-500.0,0.00023,2]
[356028144,1741806640069,-500.0,0.00023,2]
[356028146,1741806640078,-500.0,0.00023,2]
[356028148,1741806640088,-500.0,0.00023,2]
[356028149,1741806640097,-500.0,0.00023,2]
[356028151,1741806640106,-500.0,0.00023,2]
[356028153,1741806640115,-500.0,0.00023,2]
[356028155,1741806640124,-500.0,0.00023,2]
[356028157,1741806640133,-500.0,0.00023,2]
[356028158,1741806640142,-500.0,0.00023,2]
[356028160,1741806640150,-500.0,0.00023,2]
[356028162,1741806640159,-500.0,0.00023,2]
[356028164,1741806640168,-500.0,0.00023,2]
[356028165,1741806640177,-500.0,0.00023,2]
[356028167,1741806640186,-500.0,0.00023,2]
[356028169,1741806640195,-500.0,0.00023,2]
[356028171,1741806640204,-500.0,0.00023,2]
[356028173,1741806640213,-500.0,0.00023,2]
[356028175,1741806640222,-500.0,0.00023,2]
[356028176,1741806640231,-500.0,0.00023,2]
[356028178,1741806640239,-500.0,0.00023,2]
[356028180,1741806640248,-500.0,0.00023,2]
[356028182,1741806640257,-500.0,0.00023,2]
[356028184,1741806640266,-500.0,0.00023,2]
[356028185,1741806640274,-500.0,0.00023,2]
[356028187,1741806640283,-500.0,0.00023,2]
[356028189,1741806640292,-500.0,0.00023,2]
[356028191,1741806640302,-500.0,0.00023,2]
[356028192,1741806640312,-500.0,0.00023,2]
[356028194,1741806640321,-500.0,0.00023,2]
[356028196,1741806640330,-500.0,0.00023,2]
[356028198,1741806640339,-500.0,0.00023,2]
[356028200,1741806640349,-500.0,0.00023,2]
[356028202,1741806640358,-500.0,0.00023,2]
[356028203,1741806640367,-500.0,0.00023,2]
[356028205,1741806640376,-500.0,0.00023,2]
[356028207,1741806640387,-500.0,0.00023,2]
[356028209,1741806640396,-500.0,0.00023,2]
[356028211,1741806640405,-500.0,0.00023,2]
[356028213,1741806640415,-500.0,0.00023,2]
[356028214,1741806640423,-500.0,0.00023,2]
[356028216,1741806640432,-500.0,0.00023,2]
[356028218,1741806640441,-500.0,0.00023,2]
[356028220,1741806640450,-500.0,0.00023,2]
[356028222,1741806640459,-500.0,0.00023,2]
[356028223,1741806640468,-500.0,0.00023,2]
[356028225,1741806640477,-500.0,0.00023,2]
[356028227,1741806640486,-500.0,0.00023,2]
[356028229,1741806640495,-500.0,0.00023,2]
[356028231,1741806640503,-500.0,0.00023,2]
[356028232,1741806640512,-500.0,0.00023,2]
[356028234,1741806640521,-500.0,0.00023,2]
[356028236,1741806640530,-500.0,0.00023,2]
[356028238,1741806640539,-500.0,0.00023,2]
[356028240,1741806640547,-500.0,0.00023,2]
[356028241,1741806640558,-500.0,0.00023,2]
[356028243,1741806640567,-500.0,0.00023,2]
[356028245,1741806640576,-500.0,0.00023,2]
[356028247,1741806640585,-500.0,0.00023,2]
[356028249,1741806640594,-500.0,0.00023,2]
[356028251,1741806640603,-500.0,0.00023,2]
[356028252,1741806640612,-500.0,0.00023,2]
[356028254,1741806640622,-500.0,0.00023,2]
[356028256,1741806640631,-500.0,0.00023,2]
[356028258,1741806640639,-500.0,0.00023,2]
[356028260,1741806640648,-500.0,0.00023,2]
[356028262,1741806640667,-500.0,0.00023,2]
[356028264,1741806640677,-500.0,0.00023,2]
[356028266,1741806640688,-500.0,0.00023,2]
[356028268,1741806640697,-500.0,0.00023,2]
[356028270,1741806640706,-500.0,0.00023,2]
[356028272,1741806640715,-500.0,0.00023,2]
[356028273,1741806640724,-500.0,0.00023,2]
[356028275,1741806640734,-500.0,0.00023,2]
[356028277,1741806640743,-500.0,0.00023,2]
[356028279,1741806640752,-500.0,0.00023,2]
[356028281,1741806640762,-500.0,0.00023,2]
[356028283,1741806640772,-500.0,0.00023,2]
[356028284,1741806640782,-500.0,0.00023,2]
[356028286,1741806640791,-500.0,0.00023,2]
[356028288,1741806640800,-1124.757,0.00023539,4]
[356028290,1741806640811,-216.99,0.00023826,2]
[356028292,1741806640820,-890.29,0.00023836,2]
[356028294,1741806640829,-2000.0,0.00023865,4]
[356028296,1741806640839,-216.99,0.0002399,2]
[356028297,1741806640848,-151868.13243104,0.00024,20]
[356028299,1741806640858,-360.2,0.00024113,2]
[356028301,1741806640867,-2000.0,0.00024478,4]
[356028303,1741806640876,-163.46,0.00024658,2]
[356028305,1741806640885,-1000.0,0.00024658,2]
[356028307,1741806640894,-216.99,0.00024757,2]
[356028308,1741806640903,-52932.0,0.00024767,2]
[356028310,1741806640912,-216.99,0.0002479,2]
[356028312,1741806640922,-216.99,0.0002479,2]
[356028314,1741806640931,-216.99,0.0002479,2]
[356028316,1741806640940,-216.99,0.0002479,2]
[356028318,1741806640949,-216.99,0.0002479,2]
[356028320,1741806640958,-216.99,0.0002479,2]
[356028321,1741806640967,-185776.25350599,0.000248,3]
[356028364,1741806641522,-8298.59912962,0.000248,3]
[356028365,1741806641546,-932.58255358,0.000248,3]
[356028366,1741806641570,-514.6222877,0.000248,3]
[356028413,1741806642170,-491.47098,0.00020279,2]
[356028417,1741806642194,-522.6456243,0.00020279,2]
[356028419,1741806642204,-852.40134286,0.00020279,2]
[356028421,1741806642215,-182.5409452,0.00020279,2]
[356028423,1741806642225,-1497.4590548,0.00021762,3]
[356028426,1741806642243,-1805.85709008,0.00011099,2]
[356028428,1741806642252,-551.59983756,0.00021762,3]
[356028431,1741806642262,-152.0,0.00022,2]
[356028432,1741806642271,-2049.05889236,0.00023245,3]
[356028434,1741806642280,-2049.05889236,0.00024728,3]
[356028436,1741806642289,-432961.85268511,0.000248,3]
[356028439,1741806642299,-6753.86738773,0.000248,2]
[356028441,1741806642311,-500.0,0.00024861,7]
[356028443,1741806642320,-216.99,0.0002489,2]
[356028445,1741806642330,-216.99,0.0002489,2]
[356028447,1741806642339,-216.99,0.0002489,2]
[356028448,1741806642349,-216.99,0.0002489,2]
[356028450,1741806642358,-216.99,0.0002489,2]
[356028452,1741806642367,-216.99,0.0002489,2]
[356028454,1741806642376,-216.99,0.0002489,2]
[356028457,1741806642388,-151.0,0.000249,7]
[356028458,1741806642398,-611853.315224,0.000249,3]
[356028460,1741806642407,-261.90630394,0.000249,2]
[356028462,1741806642416,-4000.0,0.00025,2]
[356028464,1741806642425,-2000.0,0.00025092,4]
[356028466,1741806642434,-280.0,0.000253,10]
[356028468,1741806642442,-408.79,0.0002545,30]
[356028470,1741806642451,-2000.0,0.00025705,4]
[356028472,1741806642460,-153.54193515,0.00025756,2]
[356028474,1741806642469,-2049.05889236,0.0002621,4]
[356028476,1741806642478,-2000.0,0.00026319,4]
[356028478,1741806642487,-360.2,0.00026377,2]
[356028480,1741806642496,-500.0,0.00026505,7]
[356028482,1741806642505,-6753.86738771,0.00026702,2]
[356028484,1741806642514,-261.90630393,0.00026752,2]
[356028486,1741806642523,-950.0,0.00026849,2]
[356028488,1741806642531,-561.37,0.00026849,2]
[356028490,1741806642541,-2000.0,0.00026932,4]
[356028492,1741806642550,-150.0,0.0002718,2]
[356028494,1741806642561,-150.0,0.00027244,2]
[356028496,1741806642571,-150.0,0.00027278,2]
[356028498,1741806642580,-150.0,0.00027279,2]
[356028500,1741806642589,-150.0,0.00027311,2]
[356028502,1741806642599,-150.0,0.00027331,2]
[356028504,1741806642608,-216.99,0.00027387,2]
[356028506,1741806642617,-150.0,0.00027387,2]
[356028508,1741806642626,-500.0,0.00027397,120]
[356028510,1741806642635,-500.0,0.00027397,120]
[356028512,1741806642644,-151.0517042,0.00027397,120]
[356028514,1741806642653,-500.0,0.00027397,14]
[356028516,1741806642662,-177.04148444,0.00027397,14]
[356028518,1741806642672,-500.0,0.00027397,120]
[356028520,1741806642681,-500.0,0.00027397,120]
[356028522,1741806642690,-500.0,0.00027397,120]
[356028524,1741806642699,-500.0,0.00027397,120]
[356028526,1741806642708,-350.0,0.00027397,2]
[356028528,1741806642717,-2554.36,0.00027397,120]
[356028530,1741806642727,-2554.36,0.00027397,120]
[356028532,1741806642736,-2554.36,0.00027397,120]
[356028534,1741806642745,-2554.36,0.00027397,120]
[356028536,1741806642755,-2554.36,0.00027397,120]
[356028538,1741806642764,-2554.36,0.00027397,120]
[356028540,1741806642774,-2554.36,0.00027397,120]
[356028542,1741806642783,-2554.36,0.00027397,120]
[356028544,1741806642793,-2554.36,0.00027397,120]
[356028546,1741806642802,-2554.36,0.00027397,120]
[356028549,1741806642812,-2554.36,0.00027397,120]
[356028551,1741806642822,-2554.36,0.00027397,120]
[356028552,1741806642831,-2554.36,0.00027397,120]
[356028555,1741806642840,-2554.36,0.00027397,120]
[356028557,1741806642849,-2554.36,0.00027397,120]
[356028559,1741806642858,-2554.36,0.00027397,120]
[356028562,1741806642868,-2554.36,0.00027397,120]
[356028564,1741806642877,-2554.36,0.00027397,120]
[356028566,1741806642887,-2554.36,0.00027397,120]
[356028568,1741806642896,-2554.36,0.00027397,120]
[356028570,1741806642905,-2554.36,0.00027397,120]
[356028572,1741806642914,-2554.36,0.00027397,120]
[356028573,1741806642923,-2554.36,0.00027397,120]
[356028592,1741806642932,-2554.40754806,0.00027397,120]
[356028596,1741806643110,-500.0,0.00027397,120]
[356028598,1741806643119,-500.0,0.00027397,120]
[356028600,1741806643129,-506.40989492,0.00027397,120]
[356028602,1741806643138,-500.0,0.00027397,120]
[356028603,1741806643147,-500.0,0.00027397,120]
[356028605,1741806643157,-900.0,0.00027397,2]
[356028607,1741806643166,-900.0,0.00027397,2]
[356028609,1741806643176,-900.0,0.00027397,2]
[356028611,1741806643185,-900.0,0.00027397,2]
[356028613,1741806643194,-900.0,0.00027397,2]
[356028615,1741806643203,-900.0,0.00027397,2]
[356028617,1741806643212,-900.0,0.00027397,2]
[356028619,1741806643221,-900.0,0.00027397,2]
[356028621,1741806643230,-900.0,0.00027397,2]
[356028623,1741806643239,-900.0,0.00027397,2]
[356028625,1741806643249,-150.0,0.00027399,2]
[356028627,1741806643258,-150.0,0.00027399,2]
[356028630,1741806643267,-150.0,0.00027432,2]
[356028632,1741806643277,-150.0,0.00027534,2]
[356028634,1741806643287,-153.78,0.00027538,2]
[356028635,1741806643298,-2000.0,0.00027546,4]
[356028638,1741806643314,-150.0,0.00027561,2]
[356028640,1741806643324,-150.0,0.00027574,2]
[356028641,1741806643333,-150.0,0.00027574,2]
[356028643,1741806643342,-150.0,0.00027589,2]
[356028645,1741806643353,-150.0,0.00027593,2]
[356028647,1741806643362,-150.0,0.00027632,2]
[356028650,1741806643372,-150.0,0.00027635,2]
[356028652,1741806643382,-150.0,0.00027644,2]
[356028654,1741806643391,-150.0,0.00027646,2]
[356028655,1741806643400,-150.0,0.00027651,2]
[356028657,1741806643410,-150.0,0.00027664,2]
[356028659,1741806643420,-350.0,0.00027671,2]
[356028661,1741806643429,-150.0,0.00027676,2]
[356028664,1741806643438,-150.0,0.0002768,2]
[356028665,1741806643448,-150.0,0.0002768,2]
[356028668,1741806643457,-150.0,0.0002769,2]
[356028670,1741806643466,-150.0,0.00027735,2]
[356028671,1741806643475,-150.0,0.00027744,2]
[356028675,1741806643485,-150.0,0.00027749,2]
[356028678,1741806643494,-150.0,0.00027755,2]
[356028683,1741806643503,-150.0,0.00027757,2]
[356028685,1741806643512,-150.0,0.0002776,2]